[Event "*** Titled Tuesday Blitz"]
[Site "Chess.com"]
[Date "2020.04.28"]
[Round "4"]
[White "Andrei_Belozerov"]
[Black "frankshar"]
[Result "1/2-1/2"]
[WhiteElo "2582"]
[BlackElo "2289"]
[TimeControl "180+1"]
[EndTime "10:39:15 PDT"]
[Termination "Game drawn by repetition"]

1. e4 {[%clk 0:03:00.9]} 1... c6 {[%clk 0:02:59.7]} 2. d4 {[%clk 0:03:00.3]}
2... d5 {[%clk 0:03:00.6]} 3. Nd2 {[%clk 0:03:00.1]} 3... dxe4 {[%clk
0:03:00.6]} 4. Nxe4 {[%clk 0:03:00.2]} 4... Nd7 {[%clk 0:03:01.1]} 5. Ng5 {[%clk
0:02:56.6]} 5... Ngf6 {[%clk 0:03:00.5]} 6. Bd3 {[%clk 0:02:55.9]} 6... e6
{[%clk 0:02:58.1]} 7. N1f3 {[%clk 0:02:54.9]} 7... Bd6 {[%clk 0:02:54.2]} 8. Qe2
{[%clk 0:02:53.9]} 8... h6 {[%clk 0:02:53.9]} 9. Ne4 {[%clk 0:02:44.9]} 9...
Nxe4 {[%clk 0:02:53.9]} 10. Qxe4 {[%clk 0:02:44.7]} 10... Nf6 {[%clk 0:02:54.4]}
11. Qe2 {[%clk 0:02:42.4]} 11... b6 {[%clk 0:02:54.5]} 12. Bd2 {[%clk
0:02:40.3]} 12... Bb7 {[%clk 0:02:52.8]} 13. Ne5 {[%clk 0:02:37.5]} 13... Bc7
{[%clk 0:02:47.5]} 14. c3 {[%clk 0:02:27.8]} 14... Qd5 {[%clk 0:02:23.2]} 15.
O-O-O {[%clk 0:02:11.6]} 15... Qxa2 {[%clk 0:02:18.2]} 16. Bc4 {[%clk
0:02:10.8]} 16... Qa1+ {[%clk 0:01:37.9]} 17. Kc2 {[%clk 0:02:10.3]} 17... Qa4+
{[%clk 0:01:38.8]} 18. Kb1 {[%clk 0:02:04.4]} 18... Bxe5 {[%clk 0:01:27.6]} 19.
dxe5 {[%clk 0:02:00.4]} 19... Nd5 {[%clk 0:01:26.5]} 20. Bc1 {[%clk 0:01:45.3]}
20... O-O-O {[%clk 0:01:16.8]} 21. Rd2 {[%clk 0:01:35.9]} 21... b5 {[%clk
0:00:43.1]} 22. Ba2 {[%clk 0:01:21.1]} 22... b4 {[%clk 0:00:38.1]} 23. cxb4
{[%clk 0:01:07.8]} 23... Nxb4 {[%clk 0:00:36.8]} 24. Bc4 {[%clk 0:01:06.6]}
24... Rxd2 {[%clk 0:00:28.6]} 25. Bxd2 {[%clk 0:01:06.1]} 25... Qc2+ {[%clk
0:00:27.6]} 26. Ka1 {[%clk 0:01:04.7]} 26... Qa4+ {[%clk 0:00:16.6]} 27. Kb1
{[%clk 0:01:04]} 27... Qc2+ {[%clk 0:00:15.5]} 28. Ka1 {[%clk 0:01:03.6]} 28...
Qa4+ {[%clk 0:00:15.4]} 29. Kb1 {[%clk 0:01:03.1]} 1/2-1/2

[Event "*** Titled Tuesday Blitz"]
[Site "Chess.com"]
[Date "2020.04.28"]
[Round "4"]
[White "TigrVShlyape"]
[Black "annacramling"]
[Result "1-0"]
[WhiteElo "2827"]
[BlackElo "1939"]
[TimeControl "180+1"]
[EndTime "10:39:15 PDT"]
[Termination "TigrVShlyape won by resignation"]

1. e4 {[%clk 0:03:00.9]} 1... c5 {[%clk 0:03:00]} 2. Nf3 {[%clk 0:03:00.1]} 2...
a6 {[%clk 0:02:58.3]} 3. c4 {[%clk 0:02:57.7]} 3... Nc6 {[%clk 0:02:56.6]} 4.
Nc3 {[%clk 0:02:57.3]} 4... g6 {[%clk 0:02:53]} 5. d4 {[%clk 0:02:55.2]} 5...
cxd4 {[%clk 0:02:52.5]} 6. Nxd4 {[%clk 0:02:55.4]} 6... Bg7 {[%clk 0:02:52.9]}
7. Be3 {[%clk 0:02:55.8]} 7... e6 {[%clk 0:02:51.2]} 8. Be2 {[%clk 0:02:54.4]}
8... Nge7 {[%clk 0:02:48.9]} 9. O-O {[%clk 0:02:36.7]} 9... O-O {[%clk
0:02:48.3]} 10. Qd2 {[%clk 0:02:34.9]} 10... f5 {[%clk 0:02:48]} 11. Nxc6 {[%clk
0:02:30.5]} 11... dxc6 {[%clk 0:02:17.5]} 12. Qxd8 {[%clk 0:02:27.2]} 12... Rxd8
{[%clk 0:02:15.1]} 13. Rfd1 {[%clk 0:02:24.6]} 13... Bd7 {[%clk 0:02:11.3]} 14.
Bb6 {[%clk 0:02:22.8]} 14... Bxc3 {[%clk 0:01:54.9]} 15. bxc3 {[%clk 0:02:21.8]}
15... fxe4 {[%clk 0:01:50.9]} 16. Rab1 {[%clk 0:01:57.9]} 16... Kf8 {[%clk
0:01:03.2]} 17. Bxd8 {[%clk 0:01:55.2]} 17... Rxd8 {[%clk 0:01:02.6]} 18. Rxb7
{[%clk 0:01:55.6]} 18... Ke8 {[%clk 0:01:02.4]} 19. Kf1 {[%clk 0:01:33]} 19...
c5 {[%clk 0:01:02.4]} 20. Rc7 {[%clk 0:01:30.8]} 20... Nc6 {[%clk 0:00:24]} 21.
Rdxd7 {[%clk 0:01:28.2]} 21... Rxd7 {[%clk 0:00:23.9]} 22. Rxc6 {[%clk
0:01:28.3]} 22... Ke7 {[%clk 0:00:23.2]} 23. Bg4 {[%clk 0:01:26]} 23... Rb7
{[%clk 0:00:22.6]} 24. Rxe6+ {[%clk 0:01:25.4]} 24... Kf7 {[%clk 0:00:23.5]} 25.
Rxa6 {[%clk 0:01:24.5]} 25... Rb1+ {[%clk 0:00:23.7]} 26. Ke2 {[%clk 0:01:23.9]}
26... Rb2+ {[%clk 0:00:24]} 27. Ke3 {[%clk 0:01:23.7]} 27... h5 {[%clk
0:00:22.1]} 28. Be6+ {[%clk 0:01:23.5]} 28... Ke7 {[%clk 0:00:21.9]} 29. Bd5
{[%clk 0:01:24.4]} 29... Rc2 {[%clk 0:00:21.6]} 30. a4 {[%clk 0:01:22.8]} 30...
Rxc3+ {[%clk 0:00:22]} 31. Kxe4 {[%clk 0:01:23.2]} 31... Rc1 {[%clk 0:00:21.8]}
32. a5 {[%clk 0:01:22.2]} 32... Re1+ {[%clk 0:00:22.2]} 33. Kf4 {[%clk
0:01:22.3]} 33... Rd1 {[%clk 0:00:19.6]} 34. Re6+ {[%clk 0:01:21.5]} 34... Kd7
{[%clk 0:00:19.3]} 35. a6 {[%clk 0:01:21.9]} 35... Ra1 {[%clk 0:00:11.7]} 36.
Rxg6 {[%clk 0:01:21.5]} 1-0

[Event "*** Titled Tuesday Blitz"]
[Site "Chess.com"]
[Date "2020.04.28"]
[Round "4"]
[White "FeketeBarika"]
[Black "TheMightyBishops"]
[Result "1-0"]
[WhiteElo "2220"]
[BlackElo "1993"]
[TimeControl "180+1"]
[EndTime "10:39:15 PDT"]
[Termination "FeketeBarika won by checkmate"]

1. Nf3 {[%clk 0:03:00.9]} 1... c5 {[%clk 0:02:58.6]} 2. g3 {[%clk 0:03:01.8]}
2... e6 {[%clk 0:02:57.6]} 3. Bg2 {[%clk 0:02:33.7]} 3... a6 {[%clk 0:02:57.1]}
4. O-O {[%clk 0:02:34.6]} 4... Ne7 {[%clk 0:02:56.6]} 5. c4 {[%clk 0:02:35]}
5... Ng6 {[%clk 0:02:56.6]} 6. Nc3 {[%clk 0:02:33.9]} 6... Qc7 {[%clk
0:02:56.6]} 7. b3 {[%clk 0:02:32.8]} 7... Nc6 {[%clk 0:02:54.5]} 8. Bb2 {[%clk
0:02:32.5]} 8... f6 {[%clk 0:02:52.1]} 9. d4 {[%clk 0:02:31.9]} 9... cxd4 {[%clk
0:02:52]} 10. Nxd4 {[%clk 0:02:31.9]} 10... h5 {[%clk 0:02:51.5]} 11. Nxc6
{[%clk 0:02:21.7]} 11... bxc6 {[%clk 0:02:50.8]} 12. Qc2 {[%clk 0:02:21.9]}
12... f5 {[%clk 0:02:39.2]} 13. e4 {[%clk 0:02:20.1]} 13... f4 {[%clk
0:02:38.4]} 14. Rae1 {[%clk 0:02:10.5]} 14... Ne5 {[%clk 0:02:30.7]} 15. gxf4
{[%clk 0:01:58.8]} 15... Ng4 {[%clk 0:02:29.7]} 16. e5 {[%clk 0:01:59.1]} 16...
Rh6 {[%clk 0:02:22.7]} 17. h3 {[%clk 0:01:59.2]} 17... Bc5 {[%clk 0:02:21.7]}
18. hxg4 {[%clk 0:01:58.2]} 18... hxg4 {[%clk 0:02:21.8]} 19. Ne4 {[%clk
0:01:58.7]} 19... Qd8 {[%clk 0:02:16.6]} 20. Nxc5 {[%clk 0:01:43]} 20... Qh4
{[%clk 0:02:16.3]} 21. f3 {[%clk 0:01:38.3]} 21... g3 {[%clk 0:02:16.2]} 22. Bh3
{[%clk 0:01:22.3]} 22... Qxh3 {[%clk 0:02:14.5]} 23. Qg2 {[%clk 0:01:21.5]}
23... Qf5 {[%clk 0:02:12.4]} 24. Ne4 {[%clk 0:01:18.2]} 24... Qh5 {[%clk
0:02:07.4]} 25. Nxg3 {[%clk 0:01:15]} 25... Qf7 {[%clk 0:01:59.9]} 26. Kf2
{[%clk 0:01:13.5]} 26... a5 {[%clk 0:01:55.6]} 27. Rh1 {[%clk 0:01:12.5]} 27...
Rg6 {[%clk 0:01:55.1]} 28. Rh8+ {[%clk 0:01:10.4]} 28... Ke7 {[%clk 0:01:54.2]}
29. Ba3+ {[%clk 0:01:10.7]} 29... d6 {[%clk 0:01:52.3]} 30. Bxd6+ {[%clk
0:01:09.7]} 30... Kd7 {[%clk 0:01:52.6]} 31. Rd1 {[%clk 0:01:09.4]} 31... c5
{[%clk 0:01:43.1]} 32. Bxc5+ {[%clk 0:01:08.4]} 32... Kc6 {[%clk 0:01:43.3]} 33.
Be3 {[%clk 0:01:03.6]} 33... a4 {[%clk 0:01:41.2]} 34. Rd6+ {[%clk 0:01:02.9]}
34... Kb7 {[%clk 0:01:40]} 35. b4 {[%clk 0:01:01.9]} 35... a3 {[%clk 0:01:38]}
36. b5 {[%clk 0:01:00.5]} 36... Ra4 {[%clk 0:01:32.3]} 37. Rb6+ {[%clk 0:01:00]}
37... Ka7 {[%clk 0:01:23.1]} 38. Rxc8 {[%clk 0:00:58.5]} 38... Rb4 {[%clk
0:01:14.1]} 39. Rbb8# {[%clk 0:00:44.2]} 1-0

[Event "*** Titled Tuesday Blitz"]
[Site "Chess.com"]
[Date "2020.04.28"]
[Round "4"]
[White "Arjun2002"]
[Black "binbin239"]
[Result "1-0"]
[WhiteElo "2676"]
[BlackElo "2446"]
[TimeControl "180+1"]
[EndTime "10:39:16 PDT"]
[Termination "Arjun2002 won by resignation"]

1. e4 {[%clk 0:03:00.9]} 1... c5 {[%clk 0:02:55.9]} 2. Nf3 {[%clk 0:03:00.2]}
2... Nc6 {[%clk 0:02:54.1]} 3. d4 {[%clk 0:02:59.5]} 3... cxd4 {[%clk
0:02:54.4]} 4. Nxd4 {[%clk 0:03:00.4]} 4... g6 {[%clk 0:02:54.5]} 5. c4 {[%clk
0:02:59.9]} 5... Nf6 {[%clk 0:02:54.2]} 6. Nc3 {[%clk 0:02:59.4]} 6... d6 {[%clk
0:02:54.6]} 7. f3 {[%clk 0:02:53.7]} 7... Nxd4 {[%clk 0:02:54.4]} 8. Qxd4 {[%clk
0:02:53.2]} 8... Bg7 {[%clk 0:02:55.2]} 9. Be3 {[%clk 0:02:53.3]} 9... O-O
{[%clk 0:02:55.7]} 10. Qd2 {[%clk 0:02:53.6]} 10... Be6 {[%clk 0:02:56.3]} 11.
Bd3 {[%clk 0:02:49.7]} 11... Qa5 {[%clk 0:02:56.3]} 12. O-O {[%clk 0:02:47.5]}
12... Rfc8 {[%clk 0:02:56.7]} 13. b3 {[%clk 0:02:40]} 13... a6 {[%clk 0:02:56]}
14. Rac1 {[%clk 0:02:36]} 14... b5 {[%clk 0:02:49.1]} 15. Nd5 {[%clk 0:02:18.9]}
15... Qxd2 {[%clk 0:02:46.3]} 16. Bxd2 {[%clk 0:02:19]} 16... Nxd5 {[%clk
0:02:42.2]} 17. cxd5 {[%clk 0:02:00.5]} 17... Bd7 {[%clk 0:02:42.2]} 18. Kf2
{[%clk 0:01:59.7]} 18... Bb2 {[%clk 0:02:37.9]} 19. Rb1 {[%clk 0:01:57.9]} 19...
Bd4+ {[%clk 0:02:20.9]} 20. Ke2 {[%clk 0:01:56.8]} 20... a5 {[%clk 0:02:18.8]}
21. Rfc1 {[%clk 0:01:55.1]} 21... a4 {[%clk 0:02:18.3]} 22. Rxc8+ {[%clk
0:01:47.1]} 22... Rxc8 {[%clk 0:02:08.3]} 23. bxa4 {[%clk 0:01:46.4]} 23... bxa4
{[%clk 0:02:08.6]} 24. Rb7 {[%clk 0:01:46.2]} 24... Be8 {[%clk 0:02:04.4]} 25.
Rxe7 {[%clk 0:01:42.7]} 25... Rb8 {[%clk 0:02:04.1]} 26. Bc1 {[%clk 0:01:36.8]}
26... Bb5 {[%clk 0:01:55.5]} 27. Bxb5 {[%clk 0:01:31.1]} 27... Rxb5 {[%clk
0:01:55.7]} 28. Kd3 {[%clk 0:01:24.5]} 28... Bf6 {[%clk 0:01:53.9]} 29. Ra7
{[%clk 0:01:22.1]} 29... Rb1 {[%clk 0:01:52.2]} 30. Kc2 {[%clk 0:01:20.4]} 30...
Rb4 {[%clk 0:01:52.2]} 31. Rc7 {[%clk 0:01:11.5]} 31... Kg7 {[%clk 0:01:50.9]}
32. a3 {[%clk 0:01:07.9]} 32... Rb3 {[%clk 0:01:44.4]} 33. Rc4 {[%clk
0:01:05.7]} 33... Rb7 {[%clk 0:01:37.9]} 34. Rxa4 {[%clk 0:01:04.9]} 34... Rc7+
{[%clk 0:01:38.6]} 35. Kd1 {[%clk 0:01:05.2]} 35... g5 {[%clk 0:01:33.6]} 36.
Bd2 {[%clk 0:01:01]} 36... h6 {[%clk 0:01:31.4]} 37. h3 {[%clk 0:01:00.9]} 37...
Rb7 {[%clk 0:01:30.1]} 38. Rb4 {[%clk 0:00:59.5]} 38... Ra7 {[%clk 0:01:30.8]}
39. a4 {[%clk 0:00:59.8]} 39... Be5 {[%clk 0:01:29.6]} 40. Rc4 {[%clk
0:00:59.7]} 40... Kg6 {[%clk 0:01:27.9]} 41. a5 {[%clk 0:01:00]} 41... Rb7
{[%clk 0:01:28.2]} 42. Ra4 {[%clk 0:00:57.9]} 42... Rb1+ {[%clk 0:01:25.5]} 43.
Ke2 {[%clk 0:00:57.3]} 43... Rb2 {[%clk 0:01:26.2]} 44. Kd3 {[%clk 0:00:56.7]}
44... Rb3+ {[%clk 0:01:26.5]} 45. Kc2 {[%clk 0:00:56.4]} 45... Rb2+ {[%clk
0:01:26.9]} 46. Kc1 {[%clk 0:00:56.7]} 46... Rb7 {[%clk 0:01:20.3]} 47. a6
{[%clk 0:00:56.7]} 47... Ra7 {[%clk 0:01:20.9]} 48. Be3 {[%clk 0:00:56.9]} 48...
Ra8 {[%clk 0:01:21.7]} 49. a7 {[%clk 0:00:56.5]} 1-0

[Event "*** Titled Tuesday Blitz"]
[Site "Chess.com"]
[Date "2020.04.28"]
[Round "4"]
[White "ajdemipopushi"]
[Black "morfius"]
[Result "0-1"]
[WhiteElo "2293"]
[BlackElo "2598"]
[TimeControl "180+1"]
[EndTime "10:39:17 PDT"]
[Termination "morfius won by checkmate"]

1. Nf3 {[%clk 0:03:00.9]} 1... c5 {[%clk 0:02:58.4]} 2. g3 {[%clk 0:03:01.2]}
2... Nc6 {[%clk 0:02:56.6]} 3. Bg2 {[%clk 0:03:01.5]} 3... g6 {[%clk 0:02:57.2]}
4. c4 {[%clk 0:03:01.7]} 4... Bg7 {[%clk 0:02:57.5]} 5. O-O {[%clk 0:03:02.5]}
5... d6 {[%clk 0:02:57.8]} 6. Nc3 {[%clk 0:03:02.4]} 6... h5 {[%clk 0:02:55.9]}
7. h4 {[%clk 0:03:01.8]} 7... Bf5 {[%clk 0:02:54.9]} 8. d3 {[%clk 0:02:56.7]}
8... Qd7 {[%clk 0:02:55]} 9. Nd5 {[%clk 0:02:53.1]} 9... Nf6 {[%clk 0:02:50.2]}
10. Rb1 {[%clk 0:02:44.1]} 10... Nxd5 {[%clk 0:02:41]} 11. cxd5 {[%clk 0:02:44]}
11... Nd4 {[%clk 0:02:41.8]} 12. b4 {[%clk 0:02:33.3]} 12... Nxf3+ {[%clk
0:02:36.8]} 13. Bxf3 {[%clk 0:02:32.6]} 13... c4 {[%clk 0:02:37.5]} 14. e4
{[%clk 0:02:13.6]} 14... Bh3 {[%clk 0:02:36.5]} 15. Re1 {[%clk 0:02:13.5]} 15...
c3 {[%clk 0:02:17.5]} 16. Be3 {[%clk 0:02:08.4]} 16... O-O {[%clk 0:02:16.4]}
17. Qb3 {[%clk 0:01:59.2]} 17... Rfc8 {[%clk 0:02:15.2]} 18. Rbc1 {[%clk
0:01:57.7]} 18... Bg4 {[%clk 0:02:10]} 19. Bg2 {[%clk 0:01:52]} 19... a5 {[%clk
0:02:03.4]} 20. b5 {[%clk 0:01:35.8]} 20... a4 {[%clk 0:02:02]} 21. Qb4 {[%clk
0:01:33.7]} 21... c2 {[%clk 0:01:58.5]} 22. d4 {[%clk 0:01:29.8]} 22... Qc7
{[%clk 0:01:42.7]} 23. f3 {[%clk 0:01:22.5]} 23... Bd7 {[%clk 0:01:42.4]} 24.
Re2 {[%clk 0:00:19.6]} 24... Qc3 {[%clk 0:01:41]} 25. Qxc3 {[%clk 0:00:17.3]}
25... Rxc3 {[%clk 0:01:41.7]} 26. Kf2 {[%clk 0:00:17.6]} 26... Rac8 {[%clk
0:01:40.4]} 27. b6 {[%clk 0:00:15.3]} 27... a3 {[%clk 0:01:35.8]} 28. Rd2 {[%clk
0:00:14.3]} 28... Ba4 {[%clk 0:01:35.7]} 29. Bf1 {[%clk 0:00:12.8]} 29... e6
{[%clk 0:01:22.3]} 30. dxe6 {[%clk 0:00:11.8]} 30... fxe6 {[%clk 0:01:23.2]} 31.
f4 {[%clk 0:00:12.3]} 31... e5 {[%clk 0:01:19.5]} 32. fxe5 {[%clk 0:00:11.5]}
32... dxe5 {[%clk 0:01:20.2]} 33. d5 {[%clk 0:00:11.7]} 33... Rxe3 {[%clk
0:01:15.3]} 34. Kxe3 {[%clk 0:00:11.1]} 34... Bh6+ {[%clk 0:01:16.2]} 35. Kd3
{[%clk 0:00:11.5]} 35... Bb5# {[%clk 0:01:15.1]} 0-1

[Event "*** Titled Tuesday Blitz"]
[Site "Chess.com"]
[Date "2020.04.28"]
[Round "4"]
[White "BocharovD"]
[Black "Rodalquilar"]
[Result "1-0"]
[WhiteElo "2807"]
[BlackElo "2615"]
[TimeControl "180+1"]
[EndTime "10:39:18 PDT"]
[Termination "BocharovD won by resignation"]

1. c4 {[%clk 0:03:00.9]} 1... e6 {[%clk 0:02:59.8]} 2. Nf3 {[%clk 0:02:59.3]}
2... d5 {[%clk 0:02:59.2]} 3. g3 {[%clk 0:02:59.4]} 3... Nf6 {[%clk 0:02:59]} 4.
Bg2 {[%clk 0:02:59.7]} 4... Be7 {[%clk 0:02:59.6]} 5. O-O {[%clk 0:02:59.8]}
5... O-O {[%clk 0:02:59.8]} 6. b3 {[%clk 0:02:59.1]} 6... d4 {[%clk 0:02:59.7]}
7. e3 {[%clk 0:02:58.1]} 7... c5 {[%clk 0:03:00.2]} 8. exd4 {[%clk 0:02:58.3]}
8... cxd4 {[%clk 0:03:01.1]} 9. d3 {[%clk 0:02:58.3]} 9... Nc6 {[%clk
0:03:00.8]} 10. a3 {[%clk 0:02:58.3]} 10... a5 {[%clk 0:02:59.4]} 11. Re1 {[%clk
0:02:56.8]} 11... Nd7 {[%clk 0:02:53.9]} 12. Nbd2 {[%clk 0:02:47.2]} 12... e5
{[%clk 0:02:47.6]} 13. Rb1 {[%clk 0:02:45.8]} 13... Qc7 {[%clk 0:02:43]} 14. h4
{[%clk 0:02:39.1]} 14... Nc5 {[%clk 0:02:29]} 15. Ne4 {[%clk 0:02:37]} 15...
Nxe4 {[%clk 0:02:14.9]} 16. Rxe4 {[%clk 0:02:36.2]} 16... Bf5 {[%clk 0:01:58.8]}
17. Re1 {[%clk 0:02:33.5]} 17... Bg4 {[%clk 0:01:59.2]} 18. Bd2 {[%clk
0:02:31.1]} 18... f6 {[%clk 0:01:35.1]} 19. b4 {[%clk 0:02:30]} 19... axb4
{[%clk 0:01:36]} 20. axb4 {[%clk 0:02:30.4]} 20... b5 {[%clk 0:01:36.9]} 21.
cxb5 {[%clk 0:02:24.6]} 21... Na7 {[%clk 0:01:36.5]} 22. Qb3+ {[%clk 0:02:22]}
22... Kh8 {[%clk 0:01:36.9]} 23. Nxd4 {[%clk 0:02:20.4]} 23... exd4 {[%clk
0:01:37]} 24. b6 {[%clk 0:02:20.7]} 24... Qd8 {[%clk 0:01:17.1]} 25. bxa7 {[%clk
0:02:14.1]} 25... Rxa7 {[%clk 0:01:16.8]} 26. b5 {[%clk 0:02:13.8]} 26... Bf5
{[%clk 0:01:09]} 27. Bb4 {[%clk 0:01:59.2]} 27... Bxb4 {[%clk 0:01:00]} 28. Qxb4
{[%clk 0:02:00.1]} 28... Bxd3 {[%clk 0:00:57.8]} 29. Rbd1 {[%clk 0:01:58.6]}
29... Bc2 {[%clk 0:00:45.3]} 30. Rxd4 {[%clk 0:01:57.5]} 30... Qb8 {[%clk
0:00:45.6]} 31. b6 {[%clk 0:01:57]} 31... Ra4 {[%clk 0:00:44.6]} 32. Qb2 {[%clk
0:01:42.8]} 32... Rxd4 {[%clk 0:00:30.5]} 33. Qxd4 {[%clk 0:01:43.7]} 33... Rd8
{[%clk 0:00:31.3]} 34. Qb2 {[%clk 0:01:43.5]} 34... Bg6 {[%clk 0:00:19.8]} 35.
b7 {[%clk 0:01:43.2]} 35... Bf7 {[%clk 0:00:20.3]} 36. Ra1 {[%clk 0:01:37]}
36... Qc7 {[%clk 0:00:14.4]} 37. Ra8 {[%clk 0:01:35.7]} 37... Rb8 {[%clk
0:00:14.1]} 38. Rxb8+ {[%clk 0:01:33.3]} 38... Qxb8 {[%clk 0:00:15]} 39. Qa3
{[%clk 0:01:31.5]} 1-0

[Event "*** Titled Tuesday Blitz"]
[Site "Chess.com"]
[Date "2020.04.28"]
[Round "4"]
[White "Tashik"]
[Black "XDPS"]
[Result "0-1"]
[WhiteElo "2546"]
[BlackElo "2776"]
[TimeControl "180+1"]
[EndTime "10:39:18 PDT"]
[Termination "XDPS won by resignation"]

1. c4 {[%clk 0:03:00.9]} 1... e6 {[%clk 0:02:57.8]} 2. Nf3 {[%clk 0:03:00]} 2...
d5 {[%clk 0:02:57.9]} 3. g3 {[%clk 0:02:59.2]} 3... Nf6 {[%clk 0:02:58.2]} 4.
Bg2 {[%clk 0:02:59.4]} 4... dxc4 {[%clk 0:02:57.4]} 5. Qa4+ {[%clk 0:02:58.5]}
5... Bd7 {[%clk 0:02:55.1]} 6. Qxc4 {[%clk 0:02:59.4]} 6... c5 {[%clk
0:02:55.3]} 7. Ne5 {[%clk 0:02:59.2]} 7... Qc8 {[%clk 0:02:55.6]} 8. Qd3 {[%clk
0:02:59]} 8... Nc6 {[%clk 0:02:52.8]} 9. Nxd7 {[%clk 0:02:59.5]} 9... Nxd7
{[%clk 0:02:53.7]} 10. O-O {[%clk 0:02:59.5]} 10... Be7 {[%clk 0:02:51.3]} 11.
b3 {[%clk 0:02:58.6]} 11... O-O {[%clk 0:02:51.1]} 12. Bb2 {[%clk 0:02:58.3]}
12... Bf6 {[%clk 0:02:42.5]} 13. Nc3 {[%clk 0:02:43.7]} 13... Nb6 {[%clk
0:02:21.9]} 14. a3 {[%clk 0:02:25.9]} 14... Rd8 {[%clk 0:02:21.3]} 15. Qc2
{[%clk 0:02:25.5]} 15... Nd4 {[%clk 0:02:21.4]} 16. Qd1 {[%clk 0:02:23.3]} 16...
c4 {[%clk 0:02:11.5]} 17. Ne4 {[%clk 0:02:06.5]} 17... Nxe2+ {[%clk 0:02:03.4]}
18. Qxe2 {[%clk 0:01:59.1]} 18... Bxb2 {[%clk 0:02:02.9]} 19. Rab1 {[%clk
0:01:52.5]} 19... Bxa3 {[%clk 0:02:00]} 20. b4 {[%clk 0:01:47.5]} 20... Nd5
{[%clk 0:01:52.4]} 21. Nc5 {[%clk 0:00:52.1]} 21... Bxb4 {[%clk 0:01:49.7]} 22.
Bxd5 {[%clk 0:00:28.9]} 22... Rxd5 {[%clk 0:01:26.7]} 23. Nxe6 {[%clk 0:00:20]}
23... Qxe6 {[%clk 0:01:24.5]} 24. Qxe6 {[%clk 0:00:18.1]} 24... fxe6 {[%clk
0:01:25.4]} 25. Rxb4 {[%clk 0:00:18.5]} 25... b5 {[%clk 0:01:26]} 26. Rfb1
{[%clk 0:00:14.2]} 26... a6 {[%clk 0:01:26]} 27. R1b2 {[%clk 0:00:14.3]} 27...
Kf7 {[%clk 0:01:25.4]} 28. Ra2 {[%clk 0:00:14.2]} 28... Ke7 {[%clk 0:01:24.1]}
29. Kf1 {[%clk 0:00:14.7]} 29... Kd6 {[%clk 0:01:23.5]} 30. Ke1 {[%clk
0:00:13.9]} 30... Kc5 {[%clk 0:01:23.2]} 31. Rb1 {[%clk 0:00:12.8]} 31... a5
{[%clk 0:01:23.4]} 32. Ke2 {[%clk 0:00:12.6]} 32... b4 {[%clk 0:01:22.3]} 33.
Rc2 {[%clk 0:00:12.4]} 33... Kb5 {[%clk 0:01:17.8]} 34. Rbc1 {[%clk 0:00:10.6]}
34... Rc8 {[%clk 0:01:17.6]} 35. Ra1 {[%clk 0:00:09]} 35... a4 {[%clk
0:01:17.5]} 0-1

[Event "*** Titled Tuesday Blitz"]
[Site "Chess.com"]
[Date "2020.04.28"]
[Round "4"]
[White "Yuri202062"]
[Black "LikeWater"]
[Result "1-0"]
[WhiteElo "2554"]
[BlackElo "2752"]
[TimeControl "180+1"]
[EndTime "10:39:18 PDT"]
[Termination "Yuri202062 won by resignation"]

1. d4 {[%clk 0:03:00.9]} 1... Nf6 {[%clk 0:02:59.9]} 2. c4 {[%clk 0:03:00.7]}
2... e5 {[%clk 0:03:00.5]} 3. dxe5 {[%clk 0:02:59.6]} 3... Ne4 {[%clk
0:03:01.2]} 4. Nd2 {[%clk 0:02:47.5]} 4... Bb4 {[%clk 0:02:59.8]} 5. a3 {[%clk
0:02:40.9]} 5... Nxd2 {[%clk 0:02:59.8]} 6. Bxd2 {[%clk 0:02:40.4]} 6... Bxd2+
{[%clk 0:02:59.6]} 7. Qxd2 {[%clk 0:02:39.4]} 7... Nc6 {[%clk 0:03:00.1]} 8. Nf3
{[%clk 0:02:36.5]} 8... O-O {[%clk 0:03:00.2]} 9. g3 {[%clk 0:02:25.9]} 9... Qe7
{[%clk 0:02:59.8]} 10. Qc3 {[%clk 0:02:25.1]} 10... Re8 {[%clk 0:02:59.3]} 11.
Bg2 {[%clk 0:02:24.6]} 11... Nxe5 {[%clk 0:02:59]} 12. Nxe5 {[%clk 0:02:13.3]}
12... Qxe5 {[%clk 0:02:59.9]} 13. Qxe5 {[%clk 0:02:12.8]} 13... Rxe5 {[%clk
0:03:00.8]} 14. e3 {[%clk 0:02:00.7]} 14... a5 {[%clk 0:02:54.8]} 15. b3 {[%clk
0:01:58.4]} 15... Rb8 {[%clk 0:02:46.4]} 16. Rc1 {[%clk 0:01:55.8]} 16... d6
{[%clk 0:02:44.1]} 17. O-O {[%clk 0:01:53.1]} 17... b5 {[%clk 0:02:43]} 18. cxb5
{[%clk 0:01:38.1]} 18... Rexb5 {[%clk 0:02:43.9]} 19. Rxc7 {[%clk 0:01:36.2]}
19... Rxb3 {[%clk 0:02:44.6]} 20. Bd5 {[%clk 0:01:26]} 20... Rxa3 {[%clk
0:02:44]} 21. Rxf7 {[%clk 0:01:20.6]} 21... Rd3 {[%clk 0:02:04.3]} 22. Rb7+
{[%clk 0:01:17.3]} 22... Rxd5 {[%clk 0:02:04.6]} 23. Rxb8 {[%clk 0:01:16.6]}
23... Rc5 {[%clk 0:02:05.3]} 24. Rd1 {[%clk 0:01:15.9]} 24... d5 {[%clk
0:02:03.1]} 25. e4 {[%clk 0:01:12.3]} 25... Kf7 {[%clk 0:01:57.1]} 26. Rxd5
{[%clk 0:01:11.6]} 26... Rc4 {[%clk 0:01:49.1]} 27. Kg2 {[%clk 0:01:08.4]} 27...
a4 {[%clk 0:01:47.3]} 28. Ra5 {[%clk 0:01:06.9]} 28... Bd7 {[%clk 0:01:40.2]}
29. Rb7 {[%clk 0:01:04.5]} 29... Ke6 {[%clk 0:01:40.5]} 30. Ra6+ {[%clk
0:01:02.5]} 30... Bc6 {[%clk 0:01:40.8]} 31. Rxg7 {[%clk 0:01:01.2]} 31... Kd6
{[%clk 0:01:37.9]} 32. f3 {[%clk 0:01:00.2]} 32... Kc5 {[%clk 0:01:30.2]} 33.
Rxh7 {[%clk 0:00:55.3]} 33... Kb4 {[%clk 0:01:25.2]} 34. Rha7 {[%clk 0:00:52.9]}
34... Bb5 {[%clk 0:01:23.9]} 35. Rb6 {[%clk 0:00:49.3]} 35... Rc5 {[%clk
0:01:22.4]} 36. h4 {[%clk 0:00:45.7]} 36... a3 {[%clk 0:01:18.5]} 37. g4 {[%clk
0:00:43.8]} 37... Rc2+ {[%clk 0:01:08.3]} 38. Kg3 {[%clk 0:00:43]} 38... a2
{[%clk 0:01:08.8]} 39. h5 {[%clk 0:00:38.9]} 39... Kc5 {[%clk 0:01:05.7]} 40.
Rxb5+ {[%clk 0:00:38.1]} 40... Kxb5 {[%clk 0:01:06.6]} 41. h6 {[%clk 0:00:37.7]}
1-0